[Event "Early-Titled-Tuesday-Blitz-October-03-2023"]
[Site "Chess.com"]
[Date "2023.10.03"]
[Round "2"]
[White "KorolDimitriy75"]
[Black "QuintilianoR"]
[Result "1-0"]
[WhiteElo "2398"]
[BlackElo "2655"]
[TimeControl "180+1"]
[EndTime "8:17:22 PDT"]
[Termination "KorolDimitriy75 won by checkmate"]

1. d4 {[%clk 0:03:00.9]} 1... d5 {[%clk 0:02:59.6]} 2. c4 {[%clk 0:03:01.5]}
2... e6 {[%clk 0:02:59.4]} 3. Nc3 {[%clk 0:03:01.8]} 3... Nf6 {[%clk 0:02:58.5]}
4. Bg5 {[%clk 0:03:01.9]} 4... Be7 {[%clk 0:02:55.1]} 5. cxd5 {[%clk 0:03:01.1]}
5... exd5 {[%clk 0:02:54.7]} 6. e3 {[%clk 0:03:01.4]} 6... c6 {[%clk 0:02:54.2]}
7. Bd3 {[%clk 0:03:00.8]} 7... Nbd7 {[%clk 0:02:50]} 8. Qc2 {[%clk 0:03:01]}
8... Nh5 {[%clk 0:02:48.4]} 9. Bxe7 {[%clk 0:02:59.2]} 9... Qxe7 {[%clk
0:02:49.3]} 10. Nge2 {[%clk 0:02:59]} 10... g6 {[%clk 0:02:47.9]} 11. h3 {[%clk
0:02:56.6]} 11... Nb6 {[%clk 0:02:43]} 12. O-O {[%clk 0:02:51.4]} 12... O-O
{[%clk 0:02:38.3]} 13. Rae1 {[%clk 0:02:50.2]} 13... Be6 {[%clk 0:02:34.4]} 14.
f3 {[%clk 0:02:35]} 14... c5 {[%clk 0:02:20.2]} 15. dxc5 {[%clk 0:02:27.2]}
15... Qxc5 {[%clk 0:02:19.8]} 16. Nd4 {[%clk 0:02:27.9]} 16... Rac8 {[%clk
0:01:57.6]} 17. Qf2 {[%clk 0:02:16.8]} 17... Bd7 {[%clk 0:01:48.9]} 18. f4
{[%clk 0:01:31.6]} 18... Rfe8 {[%clk 0:01:24.6]} 19. f5 {[%clk 0:01:19]} 19...
Rf8 {[%clk 0:01:00.6]} 20. Qh4 {[%clk 0:00:51.1]} 20... Qd6 {[%clk 0:00:52.9]}
21. Rf3 {[%clk 0:00:46.4]} 21... Qf6 {[%clk 0:00:23.9]} 22. Qf2 {[%clk 0:00:45]}
22... Qe5 {[%clk 0:00:19]} 23. Rf1 {[%clk 0:00:44]} 23... Qe7 {[%clk 0:00:09.6]}
24. g4 {[%clk 0:00:42.5]} 24... Nf6 {[%clk 0:00:05.8]} 25. fxg6 {[%clk
0:00:42.9]} 25... fxg6 {[%clk 0:00:04.3]} 26. Rxf6 {[%clk 0:00:40.7]} 26... Rxf6
{[%clk 0:00:02.6]} 27. Qxf6 {[%clk 0:00:41.6]} 27... Qxe3+ {[%clk 0:00:03.1]}
28. Rf2 {[%clk 0:00:34]} 28... Qxd3 {[%clk 0:00:03.7]} 29. Ne6 {[%clk
0:00:25.8]} 29... Bxe6 {[%clk 0:00:04.2]} 30. Qxe6+ {[%clk 0:00:25.7]} 30... Kh8
{[%clk 0:00:04.9]} 31. Qf6+ {[%clk 0:00:24.7]} 31... Kg8 {[%clk 0:00:05.1]} 32.
Qf7+ {[%clk 0:00:24.1]} 32... Kh8 {[%clk 0:00:05.1]} 33. Qf6+ {[%clk 0:00:23.5]}
33... Kg8 {[%clk 0:00:04.9]} 34. Qe6+ {[%clk 0:00:23.1]} 34... Kh8 {[%clk
0:00:05.4]} 35. Rf7 {[%clk 0:00:22.5]} 35... Qd4+ {[%clk 0:00:05.3]} 36. Kg2
{[%clk 0:00:21.8]} 36... Rg8 {[%clk 0:00:04.8]} 37. Qe7 {[%clk 0:00:21.3]} 37...
Qd2+ {[%clk 0:00:05]} 38. Kg3 {[%clk 0:00:21]} 38... Qh6 {[%clk 0:00:02.3]} 39.
Qf6+ {[%clk 0:00:19.9]} 39... Rg7 {[%clk 0:00:02.9]} 40. Rf8# {[%clk 0:00:20.2]}
1-0

[Event "Early-Titled-Tuesday-Blitz-October-03-2023"]
[Site "Chess.com"]
[Date "2023.10.03"]
[Round "2"]
[White "bazar-wokzal"]
[Black "Jojo_898"]
[Result "0-1"]
[WhiteElo "2627"]
[BlackElo "2383"]
[TimeControl "180+1"]
[EndTime "8:17:29 PDT"]
[Termination "Jojo_898 won by resignation"]

1. e4 {[%clk 0:03:00.9]} 1... d6 {[%clk 0:03:00]} 2. f4 {[%clk 0:03:00.5]} 2...
Nf6 {[%clk 0:02:57.8]} 3. Nc3 {[%clk 0:02:58.8]} 3... c6 {[%clk 0:02:55.9]} 4.
Nf3 {[%clk 0:02:58.4]} 4... b5 {[%clk 0:02:56]} 5. e5 {[%clk 0:02:55]} 5... dxe5
{[%clk 0:02:54.4]} 6. fxe5 {[%clk 0:02:54.9]} 6... Nd5 {[%clk 0:02:54.1]} 7. Ne4
{[%clk 0:02:50.9]} 7... g6 {[%clk 0:02:52.1]} 8. d4 {[%clk 0:02:50.4]} 8... Bg7
{[%clk 0:02:52.3]} 9. Be2 {[%clk 0:02:45.4]} 9... O-O {[%clk 0:02:52.9]} 10. O-O
{[%clk 0:02:44.1]} 10... f6 {[%clk 0:02:52.8]} 11. a4 {[%clk 0:02:36.5]} 11...
bxa4 {[%clk 0:02:47.1]} 12. c4 {[%clk 0:02:35.6]} 12... Nb6 {[%clk 0:02:45.2]}
13. Be3 {[%clk 0:02:26.3]} 13... Be6 {[%clk 0:02:38.7]} 14. Qc1 {[%clk
0:02:21.5]} 14... N8d7 {[%clk 0:02:35.2]} 15. Nc5 {[%clk 0:02:02.1]} 15... Nxc5
{[%clk 0:02:30.9]} 16. dxc5 {[%clk 0:02:02.4]} 16... Nd7 {[%clk 0:02:31.6]} 17.
Rxa4 {[%clk 0:02:00.6]} 17... Nxe5 {[%clk 0:02:24.1]} 18. Nxe5 {[%clk
0:02:00.1]} 18... fxe5 {[%clk 0:02:25]} 19. Rxf8+ {[%clk 0:01:51.1]} 19... Qxf8
{[%clk 0:02:24.6]} 20. Bf3 {[%clk 0:01:48.6]} 20... Qc8 {[%clk 0:02:17.9]} 21.
b4 {[%clk 0:01:45.7]} 21... Bg4 {[%clk 0:01:56.3]} 22. Be4 {[%clk 0:01:37]}
22... Bf5 {[%clk 0:01:50.9]} 23. Qc2 {[%clk 0:01:36.7]} 23... Bxe4 {[%clk
0:01:45.5]} 24. Qxe4 {[%clk 0:01:36.5]} 24... Qf5 {[%clk 0:01:45.5]} 25. Qxf5
{[%clk 0:01:16.7]} 25... gxf5 {[%clk 0:01:44.6]} 26. b5 {[%clk 0:01:17.2]} 26...
Kf7 {[%clk 0:01:43.7]} 27. b6 {[%clk 0:01:03.7]} 27... a6 {[%clk 0:01:43.5]} 28.
Bc1 {[%clk 0:00:26.9]} 28... Ke6 {[%clk 0:01:35.8]} 29. Rxa6 {[%clk 0:00:20.7]}
29... Rd8 {[%clk 0:01:26.6]} 30. b7 {[%clk 0:00:19.4]} 30... Rb8 {[%clk
0:01:25.8]} 31. Rxc6+ {[%clk 0:00:18.6]} 31... Kd7 {[%clk 0:01:25.4]} 32. Rb6
{[%clk 0:00:18.7]} 32... Kc7 {[%clk 0:01:25.1]} 33. Bb2 {[%clk 0:00:18]} 33...
Rxb7 {[%clk 0:01:24.7]} 34. Rxb7+ {[%clk 0:00:17.1]} 34... Kxb7 {[%clk
0:01:25.6]} 35. g4 {[%clk 0:00:16.9]} 35... fxg4 {[%clk 0:01:22.5]} 36. Kg2
{[%clk 0:00:15.9]} 36... h5 {[%clk 0:01:18.8]} 37. Kg3 {[%clk 0:00:11.1]} 37...
Bf6 {[%clk 0:01:18.8]} 38. Ba3 {[%clk 0:00:04.4]} 38... Kc6 {[%clk 0:01:18.8]}
39. h3 {[%clk 0:00:03.9]} 39... gxh3 {[%clk 0:01:18.4]} 40. Kxh3 {[%clk
0:00:04.8]} 40... e4 {[%clk 0:01:15.3]} 41. Kg3 {[%clk 0:00:04.2]} 41... Bg5
{[%clk 0:01:10.6]} 42. Bb4 {[%clk 0:00:03.2]} 42... Be3 {[%clk 0:01:03.3]} 43.
Kh3 {[%clk 0:00:03.3]} 43... Bxc5 {[%clk 0:01:03.1]} 44. Bc3 {[%clk 0:00:02.4]}
44... Be3 {[%clk 0:01:02.7]} 45. Kh4 {[%clk 0:00:02.6]} 45... Bf2+ {[%clk
0:01:02.9]} 46. Kxh5 {[%clk 0:00:02.8]} 46... e3 {[%clk 0:01:02.6]} 47. Bd4
{[%clk 0:00:03]} 47... Bg1 {[%clk 0:01:01.3]} 48. Kg4 {[%clk 0:00:02.7]} 48...
e2 {[%clk 0:01:01.1]} 49. Bxg1 {[%clk 0:00:01.8]} 49... e1=Q {[%clk 0:01:01.3]}
50. Bh2 {[%clk 0:00:01.6]} 50... Qe2+ {[%clk 0:01:00.6]} 51. Kh3 {[%clk
0:00:01.7]} 51... Qxc4 {[%clk 0:01:00.4]} 52. Bg3 {[%clk 0:00:02.1]} 52... Qd3
{[%clk 0:00:59.5]} 53. Kg2 {[%clk 0:00:02.3]} 53... Kd5 {[%clk 0:00:59.9]} 54.
Kh1 {[%clk 0:00:02.4]} 54... Ke4 {[%clk 0:01:00.4]} 55. Bf2 {[%clk 0:00:02.5]}
55... Qe2 {[%clk 0:01:00.7]} 56. Bg3 {[%clk 0:00:02.7]} 56... Kf3 {[%clk
0:01:01]} 0-1

[Event "Early-Titled-Tuesday-Blitz-October-03-2023"]
[Site "Chess.com"]
[Date "2023.10.03"]
[Round "2"]
[White "JulbeNn"]
[Black "erugee"]
[Result "1-0"]
[WhiteElo "2495"]
[BlackElo "2248"]
[TimeControl "180+1"]
[EndTime "8:17:35 PDT"]
[Termination "JulbeNn won on time"]

1. e4 {[%clk 0:03:00.9]} 1... e5 {[%clk 0:02:59.5]} 2. Nf3 {[%clk 0:03:00.8]}
2... Nc6 {[%clk 0:02:59.8]} 3. Bc4 {[%clk 0:03:01.1]} 3... Be7 {[%clk
0:02:59.3]} 4. d3 {[%clk 0:03:00.8]} 4... Nf6 {[%clk 0:02:59.9]} 5. c3 {[%clk
0:03:00.9]} 5... d6 {[%clk 0:03:00.2]} 6. Bb3 {[%clk 0:03:00.7]} 6... O-O {[%clk
0:03:00]} 7. Nbd2 {[%clk 0:03:01]} 7... Kh8 {[%clk 0:03:00.7]} 8. h3 {[%clk
0:03:00.3]} 8... Ng8 {[%clk 0:03:01.4]} 9. g4 {[%clk 0:03:00.4]} 9... Be6 {[%clk
0:02:57.8]} 10. Bc2 {[%clk 0:03:00.3]} 10... d5 {[%clk 0:02:56.5]} 11. Qe2
{[%clk 0:03:00.6]} 11... d4 {[%clk 0:02:55.3]} 12. Nf1 {[%clk 0:03:00.3]} 12...
g6 {[%clk 0:02:47.4]} 13. Ng3 {[%clk 0:02:59]} 13... Bf6 {[%clk 0:02:44]} 14. g5
{[%clk 0:02:48.4]} 14... Bg7 {[%clk 0:02:43.5]} 15. h4 {[%clk 0:02:45.6]} 15...
Bg4 {[%clk 0:02:42.8]} 16. h5 {[%clk 0:02:46.1]} 16... gxh5 {[%clk 0:02:29.8]}
17. Nxh5 {[%clk 0:02:45.6]} 17... f5 {[%clk 0:02:24.9]} 18. g6 {[%clk
0:02:10.7]} 18... fxe4 {[%clk 0:02:15.1]} 19. Nxg7 {[%clk 0:02:00.5]} 19... Kxg7
{[%clk 0:02:02]} 20. gxh7 {[%clk 0:01:53.4]} 20... Nf6 {[%clk 0:01:47.5]} 21.
Ng5 {[%clk 0:01:18.6]} 21... Kh8 {[%clk 0:01:40.8]} 22. Qd2 {[%clk 0:01:08.8]}
22... e3 {[%clk 0:01:33.3]} 23. fxe3 {[%clk 0:01:06.5]} 23... Nd5 {[%clk
0:01:19.9]} 24. exd4 {[%clk 0:00:33.4]} 24... exd4 {[%clk 0:01:18.4]} 25. Qg2
{[%clk 0:00:33.8]} 25... Qd7 {[%clk 0:00:53.6]} 26. Bd1 {[%clk 0:00:30.9]} 26...
Rae8+ {[%clk 0:00:52.4]} 27. Ne4 {[%clk 0:00:28.9]} 27... Bf5 {[%clk 0:00:43.2]}
28. Bh6 {[%clk 0:00:29.2]} 28... Bxe4 {[%clk 0:00:41.8]} 29. dxe4 {[%clk
0:00:29.2]} 29... Rxe4+ {[%clk 0:00:40.4]} 30. Qxe4 {[%clk 0:00:29.1]} 30... Re8
{[%clk 0:00:40.1]} 31. Bg7+ {[%clk 0:00:22]} 31... Kxg7 {[%clk 0:00:32]} 32.
h8=Q+ {[%clk 0:00:22.5]} 32... Rxh8 {[%clk 0:00:31.1]} 33. Rg1+ {[%clk
0:00:21.9]} 33... Kf7 {[%clk 0:00:27.3]} 34. Qg6+ {[%clk 0:00:17.8]} 34... Ke7
{[%clk 0:00:18.9]} 35. Qg7+ {[%clk 0:00:17.8]} 35... Kd6 {[%clk 0:00:18.9]} 36.
Qxh8 {[%clk 0:00:12.6]} 36... Qe6+ {[%clk 0:00:18.7]} 37. Be2 {[%clk 0:00:13.1]}
37... Nf4 {[%clk 0:00:17.4]} 38. Qf8+ {[%clk 0:00:09.6]} 38... Ne7 {[%clk
0:00:12.5]} 39. Qxf4+ {[%clk 0:00:09.5]} 39... Kc6 {[%clk 0:00:13.2]} 40. Qxd4
{[%clk 0:00:09.7]} 40... Nf5 {[%clk 0:00:11.3]} 41. Qc4+ {[%clk 0:00:09.8]}
41... Qxc4 {[%clk 0:00:10.3]} 42. Bxc4 {[%clk 0:00:10.7]} 1-0

[Event "Early-Titled-Tuesday-Blitz-October-03-2023"]
[Site "Chess.com"]
[Date "2023.10.03"]
[Round "2"]
[White "fabianvivasz"]
[Black "Rodalquilar"]
[Result "0-1"]
[WhiteElo "2435"]
[BlackElo "2728"]
[TimeControl "180+1"]
[EndTime "8:17:39 PDT"]
[Termination "Rodalquilar won by resignation"]

1. e4 {[%clk 0:03:00.9]} 1... d5 {[%clk 0:02:59.9]} 2. exd5 {[%clk 0:03:01.8]}
2... Qxd5 {[%clk 0:03:00.4]} 3. Nc3 {[%clk 0:03:02]} 3... Qa5 {[%clk 0:03:00.6]}
4. d4 {[%clk 0:03:00.9]} 4... Nf6 {[%clk 0:03:01]} 5. Bd2 {[%clk 0:02:59.5]}
5... Bg4 {[%clk 0:02:57.8]} 6. f3 {[%clk 0:02:56.3]} 6... Bd7 {[%clk 0:02:55.8]}
7. Bc4 {[%clk 0:02:42.4]} 7... Qb6 {[%clk 0:02:55.9]} 8. Qe2 {[%clk 0:02:30.3]}
8... e6 {[%clk 0:01:51.2]} 9. d5 {[%clk 0:02:17.1]} 9... Bc5 {[%clk 0:01:41.9]}
10. dxe6 {[%clk 0:02:13.7]} 10... fxe6 {[%clk 0:01:27.1]} 11. O-O-O {[%clk
0:02:02.1]} 11... O-O {[%clk 0:00:59.5]} 12. Nh3 {[%clk 0:02:01.1]} 12... a5
{[%clk 0:00:52.9]} 13. Ng5 {[%clk 0:01:46.9]} 13... Re8 {[%clk 0:00:52.4]} 14.
Nce4 {[%clk 0:01:26.4]} 14... Bd4 {[%clk 0:00:38.4]} 15. c3 {[%clk 0:01:15.6]}
15... Be5 {[%clk 0:00:28.7]} 16. f4 {[%clk 0:01:14.5]} 16... Bd6 {[%clk
0:00:25.7]} 17. Qd3 {[%clk 0:00:58]} 17... Nxe4 {[%clk 0:00:16.2]} 18. Qxe4
{[%clk 0:00:58.9]} 18... g6 {[%clk 0:00:16.8]} 19. Nxe6 {[%clk 0:00:39]} 19...
Bxe6 {[%clk 0:00:15.1]} 20. Bxe6+ {[%clk 0:00:39.2]} 20... Kh8 {[%clk
0:00:15.5]} 21. Qd4+ {[%clk 0:00:37.4]} 21... Qxd4 {[%clk 0:00:15.4]} 22. cxd4
{[%clk 0:00:36.1]} 22... Rxe6 {[%clk 0:00:15.8]} 23. Bc3 {[%clk 0:00:35.2]}
23... Re8 {[%clk 0:00:14.9]} 24. g3 {[%clk 0:00:31.5]} 24... Nd7 {[%clk
0:00:14.5]} 25. h4 {[%clk 0:00:32]} 25... h5 {[%clk 0:00:14.4]} 26. g4 {[%clk
0:00:29.3]} 26... Kh7 {[%clk 0:00:13.3]} 27. f5 {[%clk 0:00:24.4]} 27... hxg4
{[%clk 0:00:12.8]} 28. Rdf1 {[%clk 0:00:17.5]} 28... g3 {[%clk 0:00:12]} 29.
fxg6+ {[%clk 0:00:17.2]} 29... Kxg6 {[%clk 0:00:12.9]} 30. h5+ {[%clk
0:00:17.4]} 30... Kh7 {[%clk 0:00:13.2]} 31. Rf7+ {[%clk 0:00:17.6]} 31... Kg8
{[%clk 0:00:08.4]} 32. Rxd7 {[%clk 0:00:17.7]} 32... Rad8 {[%clk 0:00:06.4]} 33.
Rxd8 {[%clk 0:00:15.6]} 33... Rxd8 {[%clk 0:00:07]} 34. h6 {[%clk 0:00:16.3]}
34... Kh7 {[%clk 0:00:07.3]} 35. Rf1 {[%clk 0:00:14.3]} 35... Rg8 {[%clk
0:00:07]} 36. Bd2 {[%clk 0:00:13.4]} 36... g2 {[%clk 0:00:06]} 37. Rf7+ {[%clk
0:00:11.6]} 37... Kg6 {[%clk 0:00:04.8]} 38. Rg7+ {[%clk 0:00:02.2]} 38... Rxg7
{[%clk 0:00:05.2]} 39. hxg7 {[%clk 0:00:03.1]} 39... g1=Q+ {[%clk 0:00:05.8]}
40. Kc2 {[%clk 0:00:03.6]} 40... Kxg7 {[%clk 0:00:06.7]} 0-1

[Event "Early-Titled-Tuesday-Blitz-October-03-2023"]
[Site "Chess.com"]
[Date "2023.10.03"]
[Round "2"]
[White "Byniolus"]
[Black "pasteta13"]
[Result "1-0"]
[WhiteElo "2749"]
[BlackElo "2424"]
[TimeControl "180+1"]
[EndTime "8:17:42 PDT"]
[Termination "Byniolus won by resignation"]

1. d4 {[%clk 0:03:00.9]} 1... Nf6 {[%clk 0:02:59.6]} 2. Nf3 {[%clk 0:03:01]}
2... d6 {[%clk 0:02:58.1]} 3. Bf4 {[%clk 0:03:01]} 3... Nbd7 {[%clk 0:02:58.4]}
4. e3 {[%clk 0:03:01.2]} 4... g6 {[%clk 0:02:56.6]} 5. h3 {[%clk 0:03:01.7]}
5... Bg7 {[%clk 0:02:57.1]} 6. Be2 {[%clk 0:03:02.6]} 6... O-O {[%clk
0:02:57.5]} 7. O-O {[%clk 0:03:03.4]} 7... c6 {[%clk 0:02:48.1]} 8. c4 {[%clk
0:03:02.9]} 8... b6 {[%clk 0:02:38.4]} 9. Nc3 {[%clk 0:03:02.3]} 9... Qc7 {[%clk
0:02:34.6]} 10. Bh2 {[%clk 0:03:01.4]} 10... Bb7 {[%clk 0:02:31.8]} 11. Rc1
{[%clk 0:03:01.2]} 11... Rac8 {[%clk 0:02:30.7]} 12. b4 {[%clk 0:03:01]} 12...
e5 {[%clk 0:02:26.1]} 13. c5 {[%clk 0:02:58.8]} 13... bxc5 {[%clk 0:02:16]} 14.
bxc5 {[%clk 0:02:57.6]} 14... dxc5 {[%clk 0:01:39.6]} 15. dxe5 {[%clk
0:02:55.4]} 15... Nd5 {[%clk 0:01:36.9]} 16. e6 {[%clk 0:02:47.3]} 16... Ne5
{[%clk 0:01:36.9]} 17. exf7+ {[%clk 0:02:37.1]} 17... Rxf7 {[%clk 0:01:32]} 18.
Ne4 {[%clk 0:02:36.6]} 18... Nxf3+ {[%clk 0:01:18.9]} 19. Bxf3 {[%clk
0:02:35.8]} 19... Be5 {[%clk 0:01:19.8]} 20. Bxe5 {[%clk 0:02:31.9]} 20... Qxe5
{[%clk 0:01:20.7]} 21. Nxc5 {[%clk 0:02:27.7]} 21... Nc3 {[%clk 0:00:54.4]} 22.
Qd4 {[%clk 0:01:30.1]} 22... Qxd4 {[%clk 0:00:42.4]} 23. exd4 {[%clk 0:01:31]}
23... Rxf3 {[%clk 0:00:26.6]} 24. gxf3 {[%clk 0:01:28.1]} 24... Ne2+ {[%clk
0:00:25.7]} 25. Kg2 {[%clk 0:01:29]} 25... Nxc1 {[%clk 0:00:25.5]} 26. Rxc1
{[%clk 0:01:29.8]} 26... Ba8 {[%clk 0:00:20.1]} 27. Kg3 {[%clk 0:01:18.9]} 27...
Kf7 {[%clk 0:00:18.2]} 28. Rc4 {[%clk 0:01:14]} 28... Ke7 {[%clk 0:00:16.2]} 29.
Ra4 {[%clk 0:01:14.2]} 29... Rc7 {[%clk 0:00:15.6]} 30. Kf4 {[%clk 0:01:13.9]}
30... Kd6 {[%clk 0:00:14.4]} 31. Ra5 {[%clk 0:01:11.3]} 31... Rf7+ {[%clk
0:00:13.6]} 32. Ke3 {[%clk 0:01:11.9]} 32... Re7+ {[%clk 0:00:13.6]} 33. Kd3
{[%clk 0:01:08.7]} 33... Rf7 {[%clk 0:00:12.8]} 34. f4 {[%clk 0:01:04.9]} 34...
h6 {[%clk 0:00:09.7]} 35. Kc4 {[%clk 0:00:59.9]} 35... Re7 {[%clk 0:00:04.7]}
36. h4 {[%clk 0:00:53.8]} 36... Rf7 {[%clk 0:00:03.4]} 37. Kd3 {[%clk
0:00:43.7]} 37... Rc7 {[%clk 0:00:03.4]} 38. Ne4+ {[%clk 0:00:40.4]} 38... Ke6
{[%clk 0:00:03.4]} 39. Re5+ {[%clk 0:00:40.3]} 39... Kf7 {[%clk 0:00:03.4]} 40.
f5 {[%clk 0:00:40.9]} 40... gxf5 {[%clk 0:00:03.5]} 41. Rxf5+ {[%clk 0:00:41.8]}
41... Kg6 {[%clk 0:00:04.2]} 42. Re5 {[%clk 0:00:30.6]} 42... Bb7 {[%clk
0:00:04.2]} 43. h5+ {[%clk 0:00:31]} 43... Kg7 {[%clk 0:00:03.7]} 44. Nc5 {[%clk
0:00:31.9]} 44... Bc8 {[%clk 0:00:03.8]} 45. f4 {[%clk 0:00:30.7]} 45... Bg4
{[%clk 0:00:04]} 46. Ne6+ {[%clk 0:00:27.9]} 46... Bxe6 {[%clk 0:00:04.1]} 47.
Rxe6 {[%clk 0:00:28.8]} 47... Rb7 {[%clk 0:00:04.7]} 48. Rxc6 {[%clk 0:00:27.7]}
48... Kh7 {[%clk 0:00:04.8]} 49. f5 {[%clk 0:00:26.3]} 49... Rf7 {[%clk
0:00:04.5]} 50. Ke4 {[%clk 0:00:26.6]} 1-0

[Event "Early-Titled-Tuesday-Blitz-October-03-2023"]
[Site "Chess.com"]
[Date "2023.10.03"]
[Round "2"]
[White "Elbebiber"]
[Black "Kaua18"]
[Result "0-1"]
[WhiteElo "2149"]
[BlackElo "2443"]
[TimeControl "180+1"]
[EndTime "8:17:42 PDT"]
[Termination "Kaua18 won on time"]

1. d4 {[%clk 0:03:00.9]} 1... Nf6 {[%clk 0:03:00]} 2. Bg5 {[%clk 0:03:00.2]}
2... c5 {[%clk 0:02:59.7]} 3. Bxf6 {[%clk 0:03:00.3]} 3... exf6 {[%clk
0:02:59.5]} 4. c3 {[%clk 0:02:58.1]} 4... d5 {[%clk 0:02:57.7]} 5. e3 {[%clk
0:02:57.7]} 5... Nc6 {[%clk 0:02:57.9]} 6. Nf3 {[%clk 0:02:57.5]} 6... Bg4
{[%clk 0:02:48]} 7. dxc5 {[%clk 0:02:53.7]} 7... Bxc5 {[%clk 0:02:47.7]} 8. Be2
{[%clk 0:02:53.8]} 8... O-O {[%clk 0:02:48]} 9. h3 {[%clk 0:02:53.4]} 9... Be6
{[%clk 0:02:47.7]} 10. Nbd2 {[%clk 0:02:44.6]} 10... Re8 {[%clk 0:02:38]} 11.
Nb3 {[%clk 0:02:41.5]} 11... Bb6 {[%clk 0:02:37]} 12. Nbd4 {[%clk 0:02:35]}
12... Qd6 {[%clk 0:02:36.4]} 13. Qa4 {[%clk 0:02:11.1]} 13... Rad8 {[%clk
0:02:35.1]} 14. O-O {[%clk 0:02:02.6]} 14... Bd7 {[%clk 0:02:30.2]} 15. Qc2
{[%clk 0:01:58.1]} 15... Ne5 {[%clk 0:02:26.8]} 16. Rad1 {[%clk 0:01:55.2]}
16... Bc7 {[%clk 0:02:23.4]} 17. c4 {[%clk 0:01:24.3]} 17... dxc4 {[%clk
0:02:13.8]} 18. Bxc4 {[%clk 0:01:21.5]} 18... Nxc4 {[%clk 0:02:09.8]} 19. Qxc4
{[%clk 0:01:21.1]} 19... Qb6 {[%clk 0:02:03.2]} 20. b3 {[%clk 0:01:05.7]} 20...
Rc8 {[%clk 0:02:01]} 21. Qd5 {[%clk 0:00:58.5]} 21... Red8 {[%clk 0:01:59.2]}
22. Qh5 {[%clk 0:00:58.3]} 22... Bd6 {[%clk 0:01:49.6]} 23. Nf5 {[%clk
0:00:53.5]} 23... Bf8 {[%clk 0:01:49.7]} 24. Ng3 {[%clk 0:00:45.7]} 24... Bb5
{[%clk 0:01:38.7]} 25. Rxd8 {[%clk 0:00:41.6]} 25... Rxd8 {[%clk 0:01:39.6]} 26.
Rc1 {[%clk 0:00:34.4]} 26... g6 {[%clk 0:01:31.1]} 27. Qg4 {[%clk 0:00:30]}
27... Ba3 {[%clk 0:01:21.2]} 28. Re1 {[%clk 0:00:23.1]} 28... Bb2 {[%clk
0:01:15]} 29. Ne4 {[%clk 0:00:20.2]} 29... f5 {[%clk 0:01:12.5]} 30. Qg5 {[%clk
0:00:15]} 30... fxe4 {[%clk 0:01:06.8]} 31. Nd4 {[%clk 0:00:13.8]} 31... Bxd4
{[%clk 0:01:01.2]} 32. exd4 {[%clk 0:00:14]} 32... Bc6 {[%clk 0:01:01]} 33. h4
{[%clk 0:00:11.8]} 33... Qxd4 {[%clk 0:00:58.7]} 34. h5 {[%clk 0:00:11.7]} 34...
Rd5 {[%clk 0:00:53.7]} 35. Qe7 {[%clk 0:00:10.7]} 35... Re5 {[%clk 0:00:50.7]}
36. Qf6 {[%clk 0:00:09.1]} 36... Rd5 {[%clk 0:00:50.4]} 37. Qe7 {[%clk
0:00:08.8]} 37... Rf5 {[%clk 0:00:49.8]} 38. Qe8+ {[%clk 0:00:07.3]} 38... Kg7
{[%clk 0:00:49.5]} 39. h6+ {[%clk 0:00:07.4]} 39... Kxh6 {[%clk 0:00:49.3]} 40.
Qf8+ {[%clk 0:00:08.1]} 40... Kg5 {[%clk 0:00:48.2]} 41. Re3 {[%clk 0:00:08.1]}
41... Qd1+ {[%clk 0:00:27.3]} 42. Kh2 {[%clk 0:00:08.1]} 42... Kf6 {[%clk
0:00:22]} 43. Qh8+ {[%clk 0:00:05.9]} 43... Ke6 {[%clk 0:00:21.3]} 44. Qc8+
{[%clk 0:00:05.2]} 44... Qd7 {[%clk 0:00:21]} 45. Qh8 {[%clk 0:00:03.5]} 45...
Rh5+ {[%clk 0:00:21]} 46. Kg1 {[%clk 0:00:02.9]} 46... Qd1+ {[%clk 0:00:21.1]}
0-1